bitfinex-derivatives/quotes_BTCF0:USTF0_20250501
["timestamp","ask_amount","ask_price","bid_price","bid_amount"]
[1746071713415,0.3502375,94777.0,94776.0,1.33870241]
[1746071717314,0.3502375,94777.0,94776.0,1.37730241]
[1746071717512,0.3502375,94777.0,94776.0,1.32455491]
[1746071717713,0.3502375,94777.0,94776.0,0.6008]
[1746071718212,0.4722375,94777.0,94776.0,0.6008]
[1746071718403,0.4722375,94777.0,94776.0,0.8117922]
[1746071719121,0.3502375,94777.0,94776.0,0.8117922]
[1746071721016,0.0865,94777.0,94776.0,0.8117922]
[1746071721215,0.001,94777.0,94776.0,1.28595941]
[1746071721408,0.001,94777.0,94776.0,1.32595941]
[1746071722716,0.2119899,94777.0,94776.0,1.32595941]
[1746071722912,0.001,94777.0,94776.0,1.32595941]
[1746071723521,0.2119899,94777.0,94776.0,1.32595941]
[1746071724315,0.001,94777.0,94776.0,1.43147141]
[1746071724515,0.10694375,94781.0,94780.0,0.2109833]
[1746071724718,0.10694375,94781.0,94780.0,0.94515051]
[1746071725124,0.2109775,94783.0,94782.0,0.2109788]
[1746071725325,0.2109775,94783.0,94782.0,0.93514601]
[1746071726519,0.2119775,94783.0,94782.0,0.93514601]
[1746071726722,0.2914775,94783.0,94782.0,0.93514601]
[1746071727116,0.2934775,94783.0,94782.0,0.93514601]
[1746071729425,0.0825,94783.0,94782.0,0.93514601]
[1746071730417,0.2934766,94783.0,94782.0,0.93514601]
[1746071731620,0.2934766,94783.0,94782.0,0.97604601]
[1746071732818,0.0825,94783.0,94782.0,0.97604601]
[1746071733727,0.2934766,94783.0,94782.0,1.01684601]
[1746071734726,0.0825,94783.0,94782.0,1.01684601]
[1746071735420,0.0428,94783.0,94782.0,1.01684601]
[1746071737316,0.003,94783.0,94782.0,1.01684601]
[1746071739618,0.0405,94783.0,94782.0,1.01684601]
[1746071741928,0.0811,94783.0,94782.0,1.01684601]
[1746071742234,0.0405,94783.0,94782.0,1.01684601]
[1746071742422,0.0527387,94793.0,94790.0,0.2636963]
[1746071742624,0.0814,94792.0,94791.0,0.0825]
[1746071742825,0.0814,94792.0,94791.0,0.9142588]
[1746071743132,0.0814,94792.0,94791.0,1.42682601]
[1746071745326,0.0814,94792.0,94791.0,1.42782601]
[1746071747037,0.2923566,94792.0,94791.0,1.42782601]
[1746071747330,0.2923566,94792.0,94791.0,1.38942601]
[1746071767343,0.0814,94792.0,94791.0,1.38942601]
[1746071767643,0.08028437,94797.0,94791.0,1.38942601]
[1746071767644,0.08028437,94797.0,94796.0,0.2109477]
[1746071767836,0.0077568,94799.0,94798.0,0.2109432]
[1746071768032,0.2109302,94804.0,94799.0,0.210941]
[1746071768236,0.31787585,94803.0,94799.0,1.04440821]
[1746071768540,0.31787585,94803.0,94799.0,1.08410821]
[1746071769437,0.2109344,94802.0,94799.0,1.08410821]
[1746071769746,0.0025,94800.0,94799.0,1.08410821]
[1746071770146,0.01143569,94800.0,94799.0,1.08410821]
[1746071778153,0.01143569,94800.0,94799.0,1.20610821]
[1746071778953,0.22237449,94800.0,94799.0,1.20610821]
[1746071779146,0.22237449,94800.0,94799.0,1.08410821]
[1746071779842,0.26037449,94800.0,94799.0,1.08410821]
[1746071781850,0.26037449,94800.0,94799.0,0.530641]
[1746071782260,0.38237449,94800.0,94799.0,0.530641]
[1746071792270,0.26037449,94800.0,94799.0,0.530641]
[1746071793169,0.38237449,94800.0,94799.0,0.530641]
[1746071796168,0.26037449,94800.0,94799.0,0.530641]
[1746071797074,0.38237449,94800.0,94799.0,0.530641]
[1746071798173,0.26037449,94800.0,94799.0,0.530641]
[1746071799173,0.38237449,94800.0,94799.0,0.530641]
[1746071806172,0.26037449,94800.0,94799.0,0.530641]
[1746071807577,0.26037449,94800.0,94799.0,0.569641]
[1746071817173,0.38237449,94800.0,94799.0,0.569641]
[1746071818082,0.26037449,94800.0,94799.0,0.569641]
[1746071819588,0.10794375,94806.0,94805.0,0.2109276]
[1746071819884,0.11581034,94806.0,94805.0,1.31589481]
[1746071820079,0.11581034,94806.0,94805.0,1.43789481]
[1746071820483,0.11581034,94806.0,94805.0,1.51659481]
[1746071820684,0.11781034,94806.0,94805.0,1.51659481]
[1746071820886,0.01086659,94806.0,94805.0,1.51659481]
[1746071821985,0.22379199,94806.0,94805.0,1.51659481]
[1746071822185,0.22379199,94806.0,94805.0,1.39459481]
[1746071829482,0.0527277,94813.0,94810.0,0.2636407]
[1746071829684,0.2109091,94814.0,94813.0,0.2109076]
[1746071829879,0.16036998,94830.0,94822.0,0.2108898]
[1746071830081,0.34452925,94823.0,94822.0,0.8116898]
[1746071831392,0.34552925,94823.0,94822.0,0.8116898]
[1746071831785,0.35339036,94823.0,94822.0,0.8116898]
[1746071831982,0.35439036,94823.0,94822.0,0.8116898]
[1746071832385,0.43539036,94823.0,94822.0,0.6008]
[1746071833095,0.43539036,94823.0,94822.0,0.8116898]
[1746071833295,0.55739036,94823.0,94822.0,0.8116898]
[1746071833887,0.42374871,94823.0,94822.0,0.8116898]
[1746071834287,0.30174871,94823.0,94822.0,0.8116898]
[1746071835096,0.42374871,94823.0,94822.0,0.8116898]
[1746071838695,0.42374871,94823.0,94822.0,0.24]
[1746071839085,0.52920871,94823.0,94822.0,0.24]
[1746071840192,0.42374871,94823.0,94822.0,0.24]
[1746071846693,0.42374871,94823.0,94822.0,0.2782]
[1746071853204,0.42374871,94823.0,94822.0,0.3171]
[1746071854304,0.42374871,94823.0,94822.0,0.2082]
[1746071855508,0.42374871,94823.0,94822.0,0.0382]
[1746071873017,0.42374871,94823.0,94822.0,0.1082]
[1746071877208,0.42374871,94823.0,94822.0,0.147]
[1746071878016,0.42374871,94823.0,94822.0,0.1884]
[1746071878220,0.30174871,94823.0,94822.0,0.1884]
[1746071880123,0.42374871,94823.0,94822.0,0.1884]
[1746071882724,0.38633071,94823.0,94822.0,0.66256721]
[1746071883118,0.26433071,94823.0,94822.0,0.66256721]
[1746071883626,0.26433071,94823.0,94822.0,0.87345701]
[1746071885425,0.26433071,94823.0,94822.0,0.66256721]
[1746071886027,0.26433071,94823.0,94822.0,0.87345701]
[1746071887417,0.22074871,94823.0,94822.0,0.87345701]
[1746071889713,0.22074871,94823.0,94822.0,0.66256721]
[1746071892726,0.29854871,94823.0,94822.0,0.66256721]
[1746071893114,0.42054871,94823.0,94822.0,0.66256721]
[1746071896222,0.29854871,94823.0,94822.0,0.66256721]
[1746071897131,0.42054871,94823.0,94822.0,0.66256721]
[1746071902624,0.42054871,94823.0,94822.0,0.39579882]
[1746071902826,0.42054871,94823.0,94822.0,0.66256721]
[1746071904622,0.46413037,94823.0,94822.0,0.66256721]
[1746071913038,0.42054871,94823.0,94822.0,0.66256721]
[1746071913628,0.34274871,94823.0,94822.0,0.66256721]
[1746071913933,0.052721,94825.0,94824.0,0.2636017]
[1746071914128,0.052721,94825.0,94824.0,0.98776891]
[1746071915337,0.2636041,94825.0,94824.0,0.98876891]
[1746071915729,0.2636041,94825.0,94824.0,1.07016891]
[1746071916239,0.2636041,94825.0,94824.0,1.07116891]
[1746071917231,0.27163897,94825.0,94824.0,1.07116891]
[1746071922144,0.27163897,94825.0,94824.0,1.01844811]
[1746071922353,0.27163897,94825.0,94824.0,0.80756721]
[1746071922735,0.35209616,94825.0,94824.0,0.80756721]
[1746071925145,0.35209616,94825.0,94824.0,1.16836721]
[1746071926945,0.27163897,94825.0,94824.0,1.16836721]
[1746071929947,0.35063897,94825.0,94824.0,1.16836721]
[1746071932249,0.35063897,94825.0,94824.0,0.80756721]
[1746071932443,0.35063897,94825.0,94824.0,1.16836721]
[1746071933235,0.35063897,94825.0,94824.0,0.80756721]
[1746071933439,0.35063897,94825.0,94824.0,1.16836721]
[1746071935646,0.43109616,94825.0,94824.0,1.16836721]
[1746071937451,0.43109616,94825.0,94824.0,0.80756721]
[1746071937643,0.43109616,94825.0,94824.0,1.16836721]
[1746071939752,0.43109616,94825.0,94824.0,0.80756721]
[1746071939946,0.43109616,94825.0,94824.0,1.16836721]
[1746071943654,0.35063897,94825.0,94824.0,1.16836721]
[1746071946260,0.47263897,94825.0,94824.0,1.16836721]
[1746071947157,0.35063897,94825.0,94824.0,1.16836721]
[1746071952467,0.35063897,94825.0,94824.0,0.80756721]
[1746071952660,0.35063897,94825.0,94824.0,1.16836721]
[1746071953158,0.35063897,94825.0,94824.0,1.37925261]
[1746071955760,0.35063897,94825.0,94824.0,1.01845261]
[1746071955961,0.35063897,94825.0,94824.0,1.37925261]
[1746071957560,0.35063897,94825.0,94824.0,1.16836721]
[1746071957859,0.35063897,94825.0,94824.0,1.37925261]
[1746071958160,0.47263897,94825.0,94824.0,1.37925261]
[1746071959354,0.35063897,94825.0,94824.0,1.37925261]
[1746071961361,0.35063897,94825.0,94824.0,1.16836721]
[1746071961562,0.35063897,94825.0,94824.0,1.37925261]
[1746071962255,0.35063897,94825.0,94824.0,1.16836721]
[1746071963164,0.47263897,94825.0,94824.0,1.16836721]
[1746071963554,0.47263897,94825.0,94824.0,1.37925261]
[1746071964656,0.47263897,94825.0,94824.0,0.293]
[1746071964862,0.47263897,94825.0,94824.0,0.252]
[1746071966059,0.2109032,94816.0,94815.0,0.038]
[1746071966250,0.2109032,94816.0,94815.0,0.088]
[1746071966454,0.2109032,94816.0,94815.0,0.038]
[1746071966655,0.2109032,94816.0,94815.0,0.048]
[1746071966955,0.2886032,94816.0,94815.0,0.048]
[1746071967157,0.4106032,94816.0,94815.0,0.051]
[1746071968166,0.4106032,94816.0,94815.0,0.053]
[1746071973366,0.3720032,94816.0,94815.0,0.053]
[1746071977171,0.3329032,94816.0,94815.0,0.053]
[1746071978271,0.2109032,94816.0,94815.0,0.52716721]
[1746071979672,0.2109032,94816.0,94815.0,0.73807261]
[1746071981175,0.3329032,94816.0,94815.0,0.73807261]
[1746071981483,0.3329032,94816.0,94815.0,0.52716721]
[1746071981866,0.3329032,94816.0,94815.0,0.73807261]
[1746071982176,0.2109032,94816.0,94815.0,0.73807261]
[1746071982775,0.2109032,94816.0,94815.0,0.52716721]
[1746071984978,0.2109032,94816.0,94815.0,0.56776721]
[1746071985475,0.2109032,94816.0,94815.0,0.77867261]
[1746071986469,0.2109032,94816.0,94815.0,1.13947261]
[1746071989989,0.2109032,94816.0,94815.0,0.92856721]
[1746071990175,0.4095032,94816.0,94815.0,0.92856721]
[1746071990378,0.4095032,94816.0,94815.0,0.053]
[1746071991885,0.4095032,94816.0,94815.0,0.05]
[1746071992075,0.4095032,94816.0,94815.0,0.052]
[1746071992586,0.4095032,94816.0,94815.0,0.05]
[1746071992777,0.4095032,94816.0,94815.0,0.052]
[1746071993187,0.4095032,94816.0,94815.0,0.05]
[1746071993388,0.4095032,94816.0,94815.0,0.052]
[1746071994786,0.4095032,94816.0,94815.0,0.05]
[1746071995090,0.4095032,94816.0,94815.0,0.0917]
[1746071995786,0.4095032,94816.0,94815.0,0.0897]
[1746071995987,0.4095032,94816.0,94815.0,0.0917]
[1746071997381,0.1601,94816.0,94815.0,0.77677261]
[1746071997572,0.122,94816.0,94815.0,0.77677261]
[1746071998287,0.10736778,94817.0,94816.0,0.2109032]
[1746071998488,0.10736778,94817.0,94816.0,1.37817041]
[1746071999487,0.10736778,94817.0,94816.0,1.37917041]
[1746071999785,0.2108967,94819.0,94818.0,0.2108987]
[1746071999981,0.2108967,94819.0,94818.0,0.93506591]
[1746072000488,0.10736778,94821.0,94820.0,0.2108943]
[1746072000784,0.10736778,94821.0,94820.0,0.79506151]
[1746072001186,0.31825978,94821.0,94820.0,0.3994943]
[1746072002284,0.10736778,94821.0,94820.0,0.7612943]
[1746072002587,0.00803487,94825.0,94820.0,0.7612943]
[1746072002588,0.00803487,94825.0,94824.0,0.2108854]
[1746072002787,0.0015,94835.0,94831.0,0.2108698]
[1746072002973,0.0015,94835.0,94831.0,0.8316698]
[1746072003173,0.0015,94835.0,94831.0,0.9536698]
[1746072003892,0.2108657,94833.0,94832.0,0.2108654]
[1746072004092,0.2108657,94833.0,94832.0,0.6922654]
[1746072004888,0.13412686,94834.0,94833.0,0.2108654]
[1746072005187,0.13412686,94834.0,94833.0,0.6904654]
[1746072005678,0.14198443,94834.0,94833.0,0.70090015]
[1746072005984,0.35384753,94834.0,94833.0,0.6904654]
[1746072006185,0.35484753,94834.0,94833.0,0.6904654]
[1746072006387,0.35484753,94834.0,94833.0,1.25866422]
[1746072006788,0.35484753,94834.0,94833.0,1.52543261]
[1746072007178,0.35484753,94834.0,94833.0,1.40343261]
[1746072007579,0.14398443,94834.0,94833.0,1.40343261]
[1746072007980,0.00985757,94834.0,94833.0,1.40343261]
[1746072008188,0.00985757,94834.0,94833.0,1.52543261]
[1746072008984,0.002,94834.0,94833.0,1.52543261]
[1746072009185,0.001,94836.0,94835.0,0.2108609]
[1746072009383,0.001,94836.0,94835.0,0.94502811]
[1746072009583,0.001,94836.0,94835.0,1.02562811]
[1746072010186,0.001,94836.0,94835.0,1.14762811]
[1746072010686,0.002,94836.0,94835.0,1.14762811]
[1746072011190,0.003,94836.0,94835.0,1.14762811]
[1746072012986,0.01088251,94836.0,94835.0,1.14762811]
[1746072013697,0.00988251,94836.0,94835.0,1.14762811]
[1746072013889,0.00988251,94836.0,94835.0,1.14862811]
[1746072014090,0.00888251,94836.0,94835.0,1.14962811]
[1746072014488,0.03919541,94836.0,94835.0,1.14962811]
[1746072014693,0.03919541,94836.0,94835.0,1.15162811]
[1746072016704,0.0313129,94836.0,94835.0,1.15162811]
[1746072017197,1e-08,94836.0,94835.0,1.15162811]
[1746072018190,1e-08,94836.0,94835.0,1.25707211]
[1746072023403,1e-08,94836.0,94835.0,1.50707211]
[1746072023601,1e-08,94836.0,94835.0,1.50807211]
[1746072023801,1e-08,94836.0,94835.0,1.50907211]
[1746072024299,1e-08,94836.0,94835.0,1.25707211]
[1746072024503,1e-08,94836.0,94835.0,1.26107211]
[1746072026794,1e-08,94836.0,94835.0,1.11472811]
[1746072026999,0.21085871,94836.0,94835.0,1.11472811]
[1746072027199,1e-08,94836.0,94835.0,0.99272811]
[1746072027609,0.08180001,94836.0,94835.0,0.99272811]
[1746072028317,0.12210001,94836.0,94835.0,0.99272811]
[1746072030222,0.20340001,94836.0,94835.0,0.99272811]
[1746072031918,0.09111,94845.0,94835.0,0.99272811]
[1746072031919,0.0384,94845.0,94844.0,0.2108409]
[1746072032116,0.3712387,94845.0,94844.0,0.8416409]
[1746072033017,0.3712387,94845.0,94844.0,0.8436409]
[1746072033519,0.3712387,94845.0,94844.0,0.8456409]
[1746072033715,0.4496387,94845.0,94844.0,0.8456409]
[1746072040230,0.4496387,94845.0,94844.0,0.6348]
[1746072040429,0.2635727,94838.0,94835.0,0.052715]
[1746072040623,0.2635727,94838.0,94837.0,0.2108556]
[1746072040927,0.2635727,94838.0,94837.0,0.4508556]
[1746072041227,0.3855727,94838.0,94837.0,0.24]
[1746072041828,0.39629714,94838.0,94837.0,0.24]
[1746072042625,0.3855727,94838.0,94837.0,0.24]
[1746072043720,0.3855727,94838.0,94837.0,0.242]
[1746072043925,0.3855727,94838.0,94837.0,0.244]
[1746072044631,0.75685405,94838.0,94837.0,0.244]
[1746072046229,0.3855727,94838.0,94837.0,0.244]
[1746072046421,0.46602749,94838.0,94837.0,0.244]
[1746072047031,0.4764282,94838.0,94837.0,0.244]
[1746072051127,0.5158282,94838.0,94837.0,0.244]
[1746072055544,0.47527341,94838.0,94837.0,0.244]
[1746072059231,0.47527341,94838.0,94837.0,0.243]
[1746072060231,0.47527341,94838.0,94837.0,0.242]
[1746072060831,0.47527341,94838.0,94837.0,0.241]
[1746072061031,0.47527341,94838.0,94837.0,0.242]
[1746072061541,0.47527341,94838.0,94837.0,0.241]
[1746072061740,0.47527341,94838.0,94837.0,0.242]
[1746072062333,0.47527341,94838.0,94837.0,0.241]
[1746072065351,0.83607341,94838.0,94837.0,0.001]
[1746072066236,0.2108965,94819.0,94818.0,0.0387]
[1746072066433,0.2108965,94819.0,94818.0,0.26]
[1746072066434,0.5716965,94819.0,94818.0,0.26]
[1746072066942,0.2108987,94818.0,94817.0,0.00158199]
[1746072067241,0.2524987,94818.0,94817.0,0.00158199]
[1746072067437,0.3990627,94818.0,94817.0,0.00158199]
[1746072068444,0.3990627,94818.0,94817.0,0.04348199]
[1746072069248,0.5210627,94818.0,94817.0,0.04348199]
[1746072070248,0.5210627,94818.0,94817.0,0.21348199]
[1746072071140,0.4155987,94818.0,94817.0,0.21348199]
[1746072071646,0.4155987,94818.0,94817.0,0.04348199]
[1746072071849,0.4155987,94818.0,94817.0,0.21348199]
[1746072073552,0.4155987,94818.0,94817.0,0.25358199]
[1746072079936,0.4155987,94818.0,94817.0,0.29288199]
[1746072081943,0.4801987,94818.0,94817.0,0.29288199]
[1746072092356,0.4155987,94818.0,94817.0,0.29288199]
[1746072092552,0.4155987,94818.0,94817.0,0.7670492]
[1746072092553,0.3328987,94818.0,94817.0,0.7670492]
[1746072092762,0.122,94818.0,94817.0,0.9779501]
[1746072092952,0.0587,94818.0,94817.0,0.9779501]
[1746072093259,0.31807639,94820.0,94819.0,0.2108965]
[1746072093558,0.31807639,94820.0,94819.0,1.31586371]
[1746072093761,0.0527193,94828.0,94821.0,0.0527229]
[1746072094055,0.2108759,94829.0,94828.0,0.2108743]
[1746072094244,0.2108759,94829.0,94828.0,0.25]
[1746072094448,0.2108759,94829.0,94828.0,0.72416721]
[1746072094652,0.2108759,94829.0,94828.0,0.93504371]
[1746072096450,0.2108759,94829.0,94828.0,0.97844371]
[1746072096953,0.2108759,94829.0,94828.0,1.01884371]
[1746072101253,0.2108759,94829.0,94828.0,1.14084371]
[1746072102249,0.2108759,94829.0,94828.0,1.01884371]
[1746072109546,0.13412686,94830.0,94829.0,0.2108743]
[1746072109759,0.13412686,94830.0,94829.0,0.96644151]
[1746072110162,0.13412686,94830.0,94829.0,1.08844151]
[1746072110357,0.13412686,94830.0,94829.0,1.1938935]
[1746072110560,0.34499886,94830.0,94829.0,1.1938935]
[1746072110856,0.34499886,94830.0,94829.0,1.1958935]
[1746072111157,0.34499886,94830.0,94829.0,1.2382935]
[1746072111561,0.210872,94830.0,94829.0,1.2382935]
[1746072112162,0.210872,94830.0,94829.0,1.1162935]
[1746072112463,0.210872,94830.0,94829.0,1.1182935]
[1746072112761,0.210872,94830.0,94829.0,1.1202935]
[1746072113153,0.210872,94830.0,94829.0,1.2422935]
[1746072116162,0.210872,94830.0,94829.0,1.01484151]
[1746072123061,0.332872,94830.0,94829.0,1.01484151]
[1746072123664,0.332872,94830.0,94829.0,1.01084151]
[1746072124051,0.332872,94830.0,94829.0,1.01484151]
[1746072124258,0.210872,94830.0,94829.0,1.01484151]
[1746072124458,0.210872,94830.0,94829.0,1.01084151]
[1746072124660,0.210872,94830.0,94829.0,1.01484151]
[1746072127471,0.210872,94830.0,94829.0,0.248]
[1746072127772,0.210872,94830.0,94829.0,0.4588743]
[1746072128267,0.332872,94830.0,94829.0,0.4588743]
[1746072129866,0.332872,94830.0,94829.0,0.4578743]
[1746072130173,0.332872,94830.0,94829.0,0.4568743]
[1746072131973,0.332872,94830.0,94829.0,0.246]
[1746072134379,0.374072,94830.0,94829.0,0.246]
[1746072143787,0.374072,94830.0,94829.0,0.4568743]
[1746072144174,0.252072,94830.0,94829.0,0.4568743]
[1746072144574,0.252072,94830.0,94829.0,0.5365743]
[1746072146274,0.252072,94830.0,94829.0,0.8973743]
[1746072146988,0.252072,94830.0,94829.0,0.6865]
[1746072147982,0.252072,94830.0,94829.0,0.246]
[1746072148183,0.374072,94830.0,94829.0,0.246]
[1746072151188,0.374072,94830.0,94829.0,0.006]
[1746072152892,0.734872,94830.0,94829.0,0.003]
[1746072153389,0.2108965,94819.0,94818.0,0.0389]
[1746072153582,0.2108965,94819.0,94818.0,0.2689]
[1746072153888,0.2108965,94819.0,94818.0,0.74306721]
[1746072154086,0.3328965,94819.0,94818.0,0.74306721]
[1746072154278,0.4151965,94819.0,94818.0,0.74306721]
[1746072154578,0.4151965,94819.0,94818.0,0.74406721]
[1746072155280,0.4259095,94819.0,94818.0,0.74406721]
[1746072155988,0.4259095,94819.0,94818.0,0.74506721]
[1746072156178,0.4151965,94819.0,94818.0,0.74506721]
[1746072156378,0.4151965,94819.0,94818.0,0.78576721]
[1746072157183,0.2931965,94819.0,94818.0,0.78576721]
[1746072157585,0.40060082,94819.0,94818.0,0.78576721]
[1746072158090,0.52260082,94819.0,94818.0,0.78576721]
[1746072158293,0.48180082,94819.0,94818.0,0.78576721]
[1746072159090,0.35980082,94819.0,94818.0,0.78576721]
[1746072160093,0.48180082,94819.0,94818.0,0.78576721]
[1746072161791,0.45493126,94819.0,94818.0,0.78576721]
[1746072164294,0.33293126,94819.0,94818.0,0.78576721]
[1746072165201,0.45493126,94819.0,94818.0,0.78576721]
[1746072166399,0.3743965,94819.0,94818.0,0.78576721]
[1746072169302,0.2523965,94819.0,94818.0,0.78576721]
[1746072170303,0.3743965,94819.0,94818.0,0.78576721]
[1746072172312,0.2523965,94819.0,94818.0,0.78576721]
[1746072183217,0.35980082,94819.0,94818.0,0.99666591]
[1746072183408,0.35980082,94819.0,94818.0,0.78576721]
[1746072185115,0.35980082,94819.0,94818.0,0.74506721]
[1746072186115,0.48180082,94819.0,94818.0,0.74506721]
[1746072186316,0.84260082,94819.0,94818.0,0.1881187]
[1746072186506,0.84260082,94819.0,94818.0,0.002]
[1746072187503,0.7351965,94819.0,94818.0,0.002]
[1746072188302,0.7351965,94819.0,94818.0,0.001]
[1746072188508,0.7351965,94819.0,94818.0,0.002]
[1746072190911,0.91291183,94819.0,94818.0,0.002]
[1746072191111,0.95291183,94819.0,94818.0,0.002]
[1746072194419,0.7751965,94819.0,94818.0,0.002]
[1746072196312,0.7751965,94819.0,94818.0,0.04]
[1746072196720,0.7751965,94819.0,94818.0,0.002]
[1746072199419,0.7751965,94819.0,94818.0,0.0418]
[1746072200821,0.7751965,94819.0,94818.0,0.002]
[1746072202931,0.8806605,94819.0,94818.0,0.002]
[1746072207030,0.5198605,94819.0,94818.0,0.002]
[1746072207231,0.8806605,94819.0,94818.0,0.002]
[1746072207720,0.2108987,94818.0,94817.0,9e-08]
[1746072208132,0.2109254,94806.0,94805.0,8e-08]
[1746072208316,0.5717254,94806.0,94805.0,8e-08]
[1746072208722,0.6512254,94806.0,94805.0,8e-08]
[1746072209127,0.7732254,94806.0,94805.0,8e-08]
[1746072209434,0.7732254,94806.0,94805.0,0.00400008]
[1746072209729,0.7732254,94806.0,94805.0,0.00800008]
[1746072211324,1.1919254,94806.0,94805.0,0.00800008]
[1746072212330,1.1541254,94806.0,94805.0,0.17800008]
[1746072212534,0.8161854,94806.0,94805.0,0.44476847]
[1746072212841,0.7516254,94806.0,94805.0,0.86309489]
[1746072213027,0.7516254,94806.0,94805.0,0.94399489]
[1746072213233,0.6296254,94806.0,94805.0,0.94399489]
[1746072216740,0.71018911,94806.0,94805.0,0.94399489]
[1746072217125,0.29148911,94806.0,94805.0,0.94399489]
[1746072218543,0.29148911,94806.0,94805.0,0.73306729]
[1746072226233,0.2109254,94806.0,94805.0,0.73306729]
[1746072226731,0.2512254,94806.0,94805.0,0.73306729]
[1746072229939,0.2109254,94806.0,94805.0,0.73306729]
[1746072234445,0.2518254,94806.0,94805.0,0.73306729]
[1746072236050,0.2917254,94806.0,94805.0,0.73306729]
[1746072236838,0.2917254,94806.0,94805.0,0.21890008]
[1746072237152,0.4137254,94806.0,94805.0,0.17500008]
[1746072237651,0.4137254,94806.0,94805.0,0.17200008]
[1746072240549,0.4137254,94806.0,94805.0,0.3793989]
[1746072244353,0.4137254,94806.0,94805.0,0.17200008]
[1746072247752,0.4137254,94806.0,94805.0,0.17100008]
[1746072247946,0.4137254,94806.0,94805.0,0.17200008]
[1746072248146,0.4137254,94806.0,94805.0,0.17100008]
[1746072249963,0.4137254,94806.0,94805.0,0.17000008]
[1746072250150,0.4137254,94806.0,94805.0,8e-08]
[1746072252549,0.4137254,94806.0,94805.0,0.18000008]
[1746072252958,0.4137254,94806.0,94805.0,8e-08]
[1746072253154,0.4137254,94806.0,94805.0,0.18960008]
[1746072254555,0.3738254,94806.0,94805.0,0.18960008]
[1746072254759,0.122,94806.0,94805.0,0.87469489]
[1746072255159,0.2109254,94806.0,94805.0,0.91549489]
[1746072256567,0.13412686,94812.0,94811.0,0.2109143]
[1746072256857,0.13412686,94812.0,94811.0,1.07055351]
[1746072257049,0.13412686,94812.0,94811.0,1.19255351]
[1746072257254,0.34503896,94812.0,94811.0,1.19255351]
[1746072257454,0.34503896,94812.0,94811.0,1.27015351]
[1746072257654,0.13512686,94812.0,94811.0,1.27015351]
[1746072257856,0.002,94812.0,94811.0,1.52015351]
[1746072258365,0.001,94812.0,94811.0,1.52215351]
[1746072258753,0.2119121,94812.0,94811.0,1.27215351]
[1746072259364,0.2109121,94812.0,94811.0,1.27415351]
[1746072259863,0.2109121,94812.0,94811.0,1.27215351]
[1746072260061,0.37127208,94818.0,94817.0,0.2109009]
[1746072260251,0.37127208,94818.0,94817.0,1.32586811]
[1746072260454,0.37127208,94818.0,94817.0,1.43133211]
[1746072260855,0.37127208,94818.0,94817.0,1.50913211]
[1746072261052,0.37127208,94818.0,94817.0,1.63113211]
[1746072261360,0.37127208,94818.0,94817.0,1.63213211]
[1746072261564,0.16036998,94818.0,94817.0,1.63313211]
[1746072261764,0.37126868,94818.0,94817.0,1.63313211]
[1746072262464,0.2108987,94818.0,94817.0,1.63313211]
[1746072264066,0.2108987,94818.0,94817.0,1.52766811]
[1746072268265,0.2108987,94818.0,94817.0,1.40566811]
[1746072284179,0.2490987,94818.0,94817.0,1.40566811]
[1746072296177,0.2863987,94818.0,94817.0,1.40566811]
[1746072300182,0.10730292,94829.0,94828.0,0.2108765]
[1746072300485,0.2108594,94836.0,94834.0,0.2108631]
[1746072300681,0.0788,94841.0,94834.0,0.66826192]
[1746072300882,0.0788,94841.0,94838.0,0.2108542]
[1746072301086,0.0788,94841.0,94838.0,0.8516542]
[1746072301780,0.2896484,94841.0,94838.0,0.9282542]
[1746072301975,0.00158255,94842.0,94838.0,1.40242141]
[1746072302290,0.0527026,94858.0,94845.0,0.0527096]
[1746072302483,0.2108155,94856.0,94850.0,1.04579481]
[1746072302682,0.2108155,94856.0,94850.0,1.31579481]
[1746072302887,0.2108173,94855.0,94850.0,1.31579481]
[1746072303081,0.2108173,94855.0,94850.0,1.43779481]
[1746072303290,0.2108217,94853.0,94850.0,1.43779481]
[1746072303479,0.2108171,94855.0,94850.0,1.43779481]
[1746072303686,0.2108192,94854.0,94850.0,1.43779481]
[1746072304189,0.2108192,94854.0,94850.0,1.31779481]
[1746072304385,0.0527036,94856.0,94854.0,0.2108187]
[1746072304386,0.2108179,94855.0,94854.0,0.2108187]
[1746072304581,0.2477179,94855.0,94854.0,0.4408187]
[1746072304782,0.2477179,94855.0,94854.0,0.64821752]
[1746072307784,0.25555348,94855.0,94854.0,0.64821752]
[1746072311091,0.37755348,94855.0,94854.0,0.64821752]
[1746072312097,0.25555348,94855.0,94854.0,0.64821752]
[1746072313695,0.25555348,94855.0,94854.0,0.91498591]
[1746072318401,0.29525348,94855.0,94854.0,0.91498591]
[1746072320191,0.41725348,94855.0,94854.0,0.91498591]
[1746072321197,0.29525348,94855.0,94854.0,0.91498591]
[1746072322201,0.41725348,94855.0,94854.0,0.91498591]
[1746072323305,0.41725348,94855.0,94854.0,0.23]
[1746072324004,0.41725348,94855.0,94854.0,0.4408187]
[1746072334610,0.16673558,94855.0,94854.0,0.91498591]
[1746072334909,0.37755208,94855.0,94854.0,0.91498591]
[1746072335111,0.25555208,94855.0,94854.0,0.91498591]
[1746072335613,0.21865208,94855.0,94854.0,0.91498591]
[1746072337313,0.21865208,94855.0,94854.0,0.98928591]
[1746072337916,0.0527023,94859.0,94858.0,0.2108098]
[1746072338115,0.0527023,94859.0,94858.0,1.31577701]
[1746072338810,0.0372,94865.0,94858.0,1.18006721]
[1746072339016,0.2117942,94866.0,94865.0,0.2107942]
[1746072339217,0.2117942,94866.0,94865.0,0.99006141]
[1746072340315,0.2502942,94866.0,94865.0,0.99006141]
[1746072341426,0.2600526,94866.0,94865.0,0.99006141]
[1746072342018,0.2620526,94866.0,94865.0,0.99006141]
[1746072344820,0.3001526,94866.0,94865.0,0.99006141]
[1746072346225,0.2235526,94866.0,94865.0,0.99006141]
[1746072348023,0.2581526,94866.0,94865.0,0.99006141]
[1746072348215,0.2591526,94866.0,94865.0,0.99006141]
[1746072350025,0.2215526,94866.0,94865.0,0.99006141]
[1746072350818,0.2588526,94866.0,94865.0,0.99006141]
[1746072352015,0.2215526,94866.0,94865.0,0.99006141]
[1746072354627,0.003,94866.0,94865.0,0.99006141]
[1746072356028,0.2107812,94871.0,94869.0,0.2107853]
[1746072356327,0.7122831,94870.0,94869.0,1.30575251]
[1746072357019,0.7122831,94870.0,94869.0,1.37495251]
[1746072357633,0.7132831,94870.0,94869.0,1.37495251]
[1746072357927,0.7142831,94870.0,94869.0,1.37495251]
[1746072359328,0.72211094,94870.0,94869.0,1.37495251]
[1746072360230,0.84411094,94870.0,94869.0,1.37495251]
[1746072362131,0.72211094,94870.0,94869.0,1.37495251]
[1746072364229,0.51132784,94870.0,94869.0,1.37495251]